bitfinex/quotes_BTCUSD_20250326
["timestamp","ask_amount","ask_price","bid_price","bid_amount"]
[1743011926422,0.01840926,86694.0,86693.0,0.33914406]
[1743011927195,0.01840926,86694.0,86693.0,0.33814406]
[1743011927606,0.01840926,86694.0,86693.0,0.34114406]
[1743011927898,0.01840926,86694.0,86693.0,0.32660321]
[1743011928720,0.02998952,86694.0,86693.0,0.32660321]
[1743011931006,0.27221952,86694.0,86693.0,0.00317021]
[1743011932201,0.02998952,86694.0,86693.0,0.00317021]
[1743011932418,0.02998952,86694.0,86693.0,0.00017021]
[1743011932649,0.02998952,86694.0,86693.0,0.00217021]
[1743011932903,0.24261506,86694.0,86693.0,0.00217021]
[1743011933139,0.25414906,86694.0,86693.0,0.00217021]
[1743011934226,0.01191906,86694.0,86693.0,0.00517021]
[1743011934714,0.24261506,86694.0,86693.0,0.00517021]
[1743011934950,0.01191906,86694.0,86693.0,0.00517021]
[1743011935152,0.24261506,86694.0,86693.0,0.00517021]
[1743011935653,0.25414906,86694.0,86693.0,0.00517021]
[1743011935913,0.27221829,86694.0,86693.0,0.00517021]
[1743011936825,0.27221829,86694.0,86693.0,0.00317021]
[1743011937065,0.27221829,86694.0,86693.0,0.00517021]
[1743011937307,0.27221829,86694.0,86693.0,0.00217021]
[1743011937308,0.01840803,86694.0,86693.0,0.00217021]
[1743011937792,0.26063803,86694.0,86693.0,0.00517021]
[1743011938026,0.01840803,86694.0,86693.0,0.00517021]
[1743011938485,0.24910403,86694.0,86693.0,0.00517021]
[1743011939040,0.26063803,86694.0,86693.0,0.00517021]
[1743011939255,0.24910403,86694.0,86693.0,0.00517021]
[1743011939482,0.26063803,86694.0,86693.0,0.00517021]
[1743011942808,0.2425688,86694.0,86693.0,0.00517021]
[1743011945780,0.26063845,86694.0,86693.0,0.00517021]
[1743011949890,0.24910445,86694.0,86693.0,0.00517021]
[1743011951248,0.01840845,86694.0,86693.0,0.31170795]
[1743011951479,0.01840845,86694.0,86693.0,0.24740321]
[1743011952621,0.0003388,86694.0,86693.0,0.24740321]
[1743011955934,0.01840715,86694.0,86693.0,0.24740321]
[1743011956170,0.01840715,86694.0,86693.0,0.87001038]
[1743011956426,0.01840715,86694.0,86693.0,1.03212158]
[1743011956627,0.01840715,86694.0,86693.0,1.10383655]
[1743011957210,0.01840715,86694.0,86693.0,1.10083655]
[1743011957438,0.01840715,86694.0,86693.0,1.09883655]
[1743011957872,0.02040715,86694.0,86693.0,1.10683655]
[1743011958426,0.02040715,86694.0,86693.0,0.98078835]
[1743011958650,0.02040715,86694.0,86693.0,0.94472535]
[1743011961514,0.01940715,86694.0,86693.0,0.93972535]
[1743011961746,0.02040715,86694.0,86693.0,0.94472535]
[1743011962453,0.0023388,86694.0,86693.0,0.94472535]
[1743011962680,0.0013388,86694.0,86693.0,0.94172535]
[1743011963129,0.0023388,86694.0,86693.0,0.94672535]
[1743011964157,0.0023388,86694.0,86693.0,1.06098299]
[1743011964635,0.0023388,86694.0,86693.0,0.94672535]
[1743011965584,0.02040544,86694.0,86693.0,0.94672535]
[1743011966055,0.02040544,86694.0,86693.0,1.54588535]
[1743011966523,0.02040544,86694.0,86693.0,1.29058686]
[1743011966775,0.02040544,86694.0,86693.0,1.45772953]
[1743011966992,0.011528,86742.0,86720.0,0.38149885]
[1743011967260,0.01168628,86742.0,86720.0,0.91116517]
[1743011967557,0.0475,86746.0,86720.0,1.02542281]
[1743011967815,0.01840116,86721.0,86720.0,1.02542281]
[1743011968069,0.01840116,86721.0,86720.0,1.02442281]
[1743011968567,0.01883041,86721.0,86720.0,1.03625384]
[1743011968803,0.01983041,86721.0,86720.0,1.04125384]
[1743011970110,0.01983041,86721.0,86720.0,1.04625384]
[1743011970304,0.01939594,86721.0,86720.0,1.04625384]
[1743011970521,0.01939594,86721.0,86720.0,1.06401118]
[1743011970933,0.01939594,86721.0,86720.0,1.07001118]
[1743011971444,0.01939594,86721.0,86720.0,1.07501118]
[1743011972501,0.01839594,86721.0,86720.0,1.07001118]
[1743011972731,0.00042925,86721.0,86720.0,1.07001118]
[1743011973361,0.00042925,86721.0,86720.0,1.06401118]
[1743011973567,0.00076805,86721.0,86720.0,1.06401118]
[1743011973766,0.00076805,86721.0,86720.0,1.07001118]
[1743011973988,0.00076805,86721.0,86720.0,1.07601118]
[1743011975837,0.01882836,86721.0,86720.0,1.07601118]
[1743011976639,0.01882836,86721.0,86720.0,1.20861118]
[1743011977276,0.01882836,86721.0,86720.0,1.80757118]
[1743011977902,0.01882836,86721.0,86720.0,1.79303033]
[1743011978936,0.01882836,86721.0,86720.0,1.80757118]
[1743011980161,0.01882836,86721.0,86720.0,1.67497118]
[1743011980363,0.01882836,86721.0,86720.0,1.69327354]
[1743011981181,0.01882836,86721.0,86720.0,1.56071354]
[1743011981401,0.01882836,86721.0,86720.0,1.69327354]
[1743011982241,0.01882836,86721.0,86720.0,1.68144251]
[1743011982414,0.01882836,86721.0,86720.0,1.60494251]
[1743011982827,0.00076805,86721.0,86720.0,1.60494251]
[1743011983233,0.00076805,86721.0,86720.0,1.58664015]
[1743011983857,0.00076805,86721.0,86720.0,1.71920015]
[1743011984415,0.00076805,86721.0,86720.0,1.60494251]
[1743011984974,0.00076805,86721.0,86720.0,1.46738251]
[1743011985179,0.00076805,86721.0,86720.0,1.59994251]
[1743011986329,0.00076805,86721.0,86720.0,1.60011191]
[1743011987006,0.01882858,86721.0,86720.0,1.60011191]
[1743011987208,0.01882858,86721.0,86720.0,1.71436955]
[1743011992868,0.00076805,86721.0,86720.0,1.71436955]
[1743011993632,0.00076805,86721.0,86720.0,1.71432955]
[1743011994980,0.00076805,86721.0,86720.0,1.71932955]
[1743011995437,0.00076805,86721.0,86720.0,1.58680955]
[1743011995649,0.00076805,86721.0,86720.0,1.71932955]
[1743011995850,0.01882829,86721.0,86720.0,1.71932955]
[1743011996053,0.01882829,86721.0,86720.0,1.75526147]
[1743011996258,0.01882829,86721.0,86720.0,1.71932955]
[1743011996737,0.00754116,86721.0,86720.0,1.58680955]
[1743011996978,0.0003388,86741.0,86740.0,0.242102]
[1743011997197,0.0003388,86741.0,86740.0,0.6721444]
[1743011997541,0.0003388,86741.0,86740.0,0.75409516]
[1743011999017,0.0003388,86741.0,86740.0,0.76009516]
[1743012000523,0.0003388,86741.0,86740.0,1.05442545]
[1743012000775,0.0003388,86741.0,86740.0,0.92690545]
[1743012001034,0.0003388,86741.0,86740.0,1.05942545]
[1743012001283,0.0003388,86741.0,86740.0,0.92390545]
[1743012001468,0.0003388,86741.0,86740.0,1.05342545]
[1743012001672,0.0003388,86741.0,86740.0,1.05942545]
[1743012001886,0.0003388,86741.0,86740.0,0.86337431]
[1743012002206,0.0003388,86741.0,86740.0,0.98434165]
[1743012002460,0.0003388,86741.0,86740.0,0.87008401]
[1743012002659,0.0003388,86741.0,86740.0,0.87608401]
[1743012002977,0.0003388,86741.0,86740.0,1.47488401]
[1743012003809,0.0003388,86741.0,86740.0,1.78409929]
[1743012004024,0.0003388,86741.0,86740.0,1.70339929]
[1743012004264,0.02188712,86741.0,86740.0,1.70339929]
[1743012004437,0.02178948,86741.0,86740.0,1.6613993]
[1743012004607,0.02178948,86741.0,86740.0,1.69141926]
[1743012004815,0.02178948,86741.0,86740.0,1.69741926]
[1743012005023,0.02178948,86741.0,86740.0,1.70341926]
[1743012005226,0.00024116,86741.0,86740.0,1.70341926]
[1743012005609,0.00024116,86741.0,86740.0,1.69741926]
[1743012005879,0.00024116,86741.0,86740.0,1.70341926]
[1743012006429,0.00024116,86741.0,86740.0,1.58916162]
[1743012006644,0.00024116,86741.0,86740.0,1.55314166]
[1743012007713,0.00024116,86741.0,86740.0,1.55310166]
[1743012007924,0.00024116,86741.0,86740.0,1.29182317]
[1743012008388,0.25371865,86741.0,86740.0,0.45092117]
[1743012008607,0.07784116,86741.0,86740.0,0.45092117]
[1743012008812,0.30841216,86741.0,86740.0,0.45092117]
[1743012009021,0.3644307,86741.0,86740.0,0.45092117]
[1743012010133,0.3644307,86741.0,86740.0,0.44492117]
[1743012010572,0.3759587,86741.0,86740.0,0.44492117]
[1743012011089,0.37887099,86741.0,86740.0,0.44492117]
[1743012011327,0.37887099,86741.0,86740.0,0.44992117]
[1743012012387,0.41335013,86741.0,86740.0,0.45492117]
[1743012012602,0.10517913,86741.0,86740.0,0.71156402]
[1743012012816,0.10517913,86741.0,86740.0,0.70056402]
[1743012013031,0.10517913,86741.0,86740.0,0.45746202]
[1743012013254,0.33575013,86741.0,86740.0,0.45746202]
[1743012013478,0.10517913,86741.0,86740.0,0.74854585]
[1743012013891,0.07069999,86741.0,86740.0,0.70456402]
[1743012014951,0.02179062,86741.0,86740.0,0.70456402]
[1743012015106,0.02179062,86741.0,86740.0,0.70056402]
[1743012015517,0.02179062,86741.0,86740.0,0.69956402]
[1743012015930,0.02179062,86741.0,86740.0,0.70356402]
[1743012016134,0.02179062,86741.0,86740.0,0.73297958]
[1743012016329,0.02179062,86741.0,86740.0,0.70356402]
[1743012017310,0.05626353,86741.0,86740.0,0.70356402]
[1743012017925,0.05626353,86741.0,86740.0,1.30236402]
[1743012019847,0.05626353,86741.0,86740.0,1.41662166]
[1743012019969,0.05626353,86741.0,86740.0,1.5308793]
[1743012020378,0.05626353,86741.0,86740.0,1.55102166]
[1743012022528,0.05626353,86741.0,86740.0,1.55119106]
[1743012022988,0.02179062,86741.0,86740.0,1.63699106]
[1743012023233,0.02179062,86741.0,86740.0,1.67299914]
[1743012023478,0.02179062,86741.0,86740.0,1.78725678]
[1743012024072,0.00024116,86741.0,86740.0,1.78725678]
[1743012024430,0.00024116,86741.0,86740.0,1.83445678]
[1743012024642,0.00024116,86741.0,86740.0,1.83045678]
[1743012025488,0.0003388,86759.0,86758.0,0.242052]
[1743012025714,0.0003388,86759.0,86758.0,0.83339087]
[1743012026965,0.0003388,86759.0,86758.0,0.94764851]
[1743012027175,0.0003388,86759.0,86758.0,0.95264851]
[1743012027375,0.0003388,86759.0,86758.0,0.86534159]
[1743012027505,0.0003388,86759.0,86758.0,0.86634159]
[1743012027729,0.0003388,86759.0,86758.0,0.92266759]
[1743012027964,0.0003388,86759.0,86758.0,0.92166759]
[1743012028192,0.0003388,86759.0,86758.0,0.92766759]
[1743012028475,0.0003388,86759.0,86758.0,0.83866401]
[1743012028941,0.0003388,86759.0,86758.0,0.83910401]
[1743012029669,0.0003388,86759.0,86758.0,0.70354401]
[1743012029923,0.0003388,86759.0,86758.0,0.83910401]
[1743012030156,0.0003388,86759.0,86758.0,0.84410401]
[1743012031415,0.0003388,86759.0,86758.0,0.86717787]
[1743012031656,0.0003388,86759.0,86758.0,0.97877597]
[1743012032876,0.0003388,86759.0,86758.0,0.86717787]
[1743012034779,0.0003388,86759.0,86758.0,0.87217787]
[1743012035390,8e-07,86759.0,86758.0,1.17217787]
[1743012035632,8e-07,86759.0,86758.0,1.25397787]
[1743012035843,8e-07,86759.0,86758.0,1.29957787]
[1743012036098,8e-07,86759.0,86758.0,1.41383551]
[1743012038450,8e-07,86759.0,86758.0,1.33203551]
[1743012038689,8e-07,86759.0,86758.0,1.21777787]
[1743012038890,8e-07,86759.0,86758.0,1.16705787]
[1743012039096,8e-07,86759.0,86758.0,1.76569787]
[1743012043243,8e-07,86759.0,86758.0,1.77069787]
[1743012043405,8e-07,86759.0,86758.0,1.88495551]
[1743012043644,0.0003388,86768.0,86767.0,0.247027]
[1743012043867,8e-07,86768.0,86767.0,0.75512549]
[1743012044949,8e-07,86768.0,86767.0,0.75521836]
[1743012045156,8e-07,86768.0,86767.0,0.867952]
[1743012045515,8e-07,86768.0,86767.0,0.876952]
[1743012045715,8e-07,86768.0,86767.0,0.873952]
[1743012045946,8e-07,86768.0,86767.0,0.898952]
[1743012046154,8e-07,86768.0,86767.0,0.94082924]
[1743012046391,8e-07,86768.0,86767.0,0.904952]
[1743012046591,8e-07,86768.0,86767.0,0.94082577]
[1743012047268,8e-07,86781.0,86767.0,0.92330077]
[1743012047493,8e-07,86781.0,86780.0,0.78088849]
[1743012047767,8e-07,86781.0,86780.0,0.96218849]
[1743012047927,8e-07,86781.0,86780.0,0.99805714]
[1743012048893,8e-07,86781.0,86780.0,1.00405714]
[1743012049146,8e-07,86781.0,86780.0,1.11831478]
[1743012050638,8e-07,86781.0,86780.0,1.14088873]
[1743012050876,8e-07,86781.0,86780.0,1.14688873]
[1743012051838,0.0003394,86804.0,86803.0,0.241926]
[1743012052046,0.0003394,86804.0,86803.0,1.63340925]
[1743012053098,0.0003394,86804.0,86803.0,1.63550212]
[1743012053753,0.0003394,86804.0,86803.0,1.14423848]
[1743012053983,0.0003394,86804.0,86803.0,1.27915848]
[1743012054190,0.0003394,86804.0,86803.0,1.50956448]
[1743012054645,0.0003394,86804.0,86803.0,1.52308448]
[1743012055319,0.0003394,86804.0,86803.0,1.54588141]
[1743012055533,0.0003394,86804.0,86803.0,1.66013905]
[1743012057445,0.0003394,86804.0,86803.0,1.65813905]
[1743012057784,0.0003394,86804.0,86803.0,1.66113905]
[1743012057990,0.0003394,86804.0,86803.0,1.65913905]
[1743012058391,0.0003394,86804.0,86803.0,1.54488141]
[1743012060287,0.0003394,86804.0,86803.0,1.54788141]
[1743012062056,0.0003394,86804.0,86803.0,1.54736141]
[1743012063327,0.0003394,86804.0,86803.0,1.53584141]
[1743012063552,0.0003394,86804.0,86803.0,1.30543541]
[1743012063800,0.0003394,86804.0,86803.0,1.53584141]
[1743012064290,0.0002418,86804.0,86803.0,1.66161905]
[1743012069987,0.0002418,86804.0,86803.0,1.54736141]
[1743012070232,0.0817418,86804.0,86803.0,1.05677777]
[1743012070476,0.0817418,86804.0,86803.0,1.28718377]
[1743012071101,0.0817418,86804.0,86803.0,1.29870377]
[1743012073019,0.0817418,86804.0,86803.0,1.05677777]
[1743012073245,0.0817418,86804.0,86803.0,1.28718377]
[1743012073440,0.0817418,86804.0,86803.0,1.29870377]
[1743012074193,0.0817418,86804.0,86803.0,1.05677777]
[1743012074429,0.3700658,86804.0,86803.0,0.00609287]
[1743012074765,0.6700658,86804.0,86803.0,0.00609287]
[1743012074971,1.7326158,86804.0,86803.0,0.00609287]
[1743012075177,1.8399698,86804.0,86803.0,0.00609287]
[1743012075435,1.0288178,86804.0,86803.0,0.00309287]
[1743012075537,0.6700658,86804.0,86803.0,0.00309287]
[1743012075747,0.6700658,86804.0,86803.0,0.00409287]
[1743012075961,0.9178928,86804.0,86803.0,0.00409287]
[1743012076390,0.9178928,86804.0,86803.0,0.00309287]
[1743012076818,0.9178928,86804.0,86803.0,9.287e-05]
[1743012077398,1.0520928,86804.0,86803.0,8.7e-07]
[1743012077617,0.8042658,86804.0,86803.0,8.7e-07]
[1743012077840,0.241985,86782.0,86781.0,0.0001694]
[1743012078085,0.371385,86782.0,86781.0,0.00029814]
[1743012078512,0.37993123,86782.0,86781.0,0.00029814]
[1743012079330,0.67993123,86782.0,86781.0,0.00029814]
[1743012079535,3.1764834,86782.0,86781.0,0.00029814]
[1743012079746,1.0951184,86782.0,86781.0,0.00029814]
[1743012080366,1.0951184,86782.0,86781.0,0.00329814]
[1743012081859,1.0951184,86782.0,86781.0,0.00029814]
[1743012083113,1.0961184,86782.0,86781.0,0.00029814]
[1743012083954,1.0971184,86782.0,86781.0,0.00029814]
[1743012085249,0.6932264,86782.0,86781.0,0.00029814]
[1743012085934,0.1512414,86782.0,86781.0,0.00029814]
[1743012086146,0.002,86782.0,86781.0,0.25682699]
[1743012086352,0.002,86782.0,86781.0,0.01483899]
[1743012086558,0.231462,86782.0,86781.0,0.01483899]
[1743012087248,0.230462,86782.0,86781.0,0.01483899]
[1743012087673,0.231462,86782.0,86781.0,0.01483899]
[1743012087893,0.230462,86782.0,86781.0,0.00029814]
[1743012088105,0.241985,86782.0,86781.0,0.00029814]
[1743012088244,0.241985,86782.0,86781.0,0.00229814]
[1743012089081,0.241985,86782.0,86781.0,0.00529814]
[1743012091332,0.230462,86782.0,86781.0,0.00529814]
[1743012091585,0.241985,86782.0,86781.0,0.00529814]
[1743012092103,0.01177902,86783.0,86781.0,0.00529814]
[1743012092301,0.01177902,86783.0,86781.0,0.23576214]
[1743012092520,0.230457,86785.0,86781.0,0.23576214]
[1743012092731,0.230458,86784.0,86781.0,0.23576214]
[1743012092937,0.241975,86786.0,86781.0,0.00529814]
[1743012093145,0.241975,86786.0,86781.0,0.00229814]
[1743012093413,0.230462,86783.0,86781.0,0.00229814]
[1743012093609,0.230462,86782.0,86781.0,0.00429814]
[1743012093992,0.24198372,86783.0,86781.0,0.00029814]
[1743012094217,0.230462,86782.0,86781.0,0.00029814]
[1743012094371,0.230462,86782.0,86781.0,0.00429814]
[1743012094572,0.230462,86782.0,86781.0,0.00229814]
[1743012095006,0.230462,86782.0,86781.0,0.00429814]
[1743012095237,0.241985,86782.0,86781.0,0.00429814]
[1743012095877,0.241985,86782.0,86781.0,0.00229814]
[1743012096378,0.241985,86782.0,86781.0,0.00529814]
[1743012096572,0.319085,86782.0,86781.0,0.00529814]
[1743012100835,0.319085,86782.0,86781.0,0.00529814]
[1743012101515,0.230462,86782.0,86781.0,0.00529814]
[1743012102548,0.241985,86782.0,86781.0,0.00529814]
[1743012105056,1.374511,86782.0,86781.0,0.00529814]
[1743012105313,0.983875,86782.0,86781.0,0.00529814]
[1743012105536,0.926121,86782.0,86781.0,0.00529814]
[1743012105949,0.926121,86782.0,86781.0,0.00329814]
[1743012106230,0.926121,86782.0,86781.0,0.00529814]
[1743012106396,0.926121,86782.0,86781.0,0.00229814]
[1743012106553,0.926121,86782.0,86781.0,0.00029814]
[1743012106762,1.226121,86782.0,86781.0,0.00229814]
[1743012107408,1.226121,86782.0,86781.0,0.00029814]
[1743012107769,0.669785,86782.0,86781.0,0.00029814]
[1743012107975,1.213654,86782.0,86781.0,0.00029814]
[1743012109182,0.669785,86782.0,86781.0,0.00029814]
[1743012109384,1.300913,86782.0,86781.0,0.00029814]
[1743012109631,1.28822,86782.0,86781.0,0.00029814]
[1743012110613,1.276671,86782.0,86781.0,0.00029814]
[1743012113603,1.265005,86782.0,86781.0,0.00029814]
[1743012115141,1.253456,86782.0,86781.0,0.00029814]
[1743012118686,1.254456,86782.0,86781.0,0.00029814]
[1743012120194,3.175715,86782.0,86781.0,0.00029814]
[1743012120391,1.906708,86782.0,86781.0,0.00029814]
[1743012120860,1.906708,86782.0,86781.0,1.4e-07]
[1743012121072,0.803425,86782.0,86781.0,1.4e-07]
[1743012122749,0.803425,86782.0,86781.0,0.00016954]
[1743012122966,0.803425,86782.0,86781.0,5.4e-07]
[1743012123176,0.803385,86782.0,86781.0,5.4e-07]
[1743012124093,0.669785,86782.0,86781.0,5.4e-07]
[1743012124276,0.802385,86782.0,86781.0,5.4e-07]
[1743012125963,0.669785,86782.0,86781.0,5.4e-07]
[1743012126173,0.804425,86782.0,86781.0,5.4e-07]
[1743012127565,0.805425,86782.0,86781.0,5.4e-07]
[1743012132879,0.672785,86782.0,86781.0,5.4e-07]
[1743012133093,0.805385,86782.0,86781.0,5.4e-07]
[1743012134825,0.8057238,86782.0,86781.0,5.4e-07]
[1743012141043,0.8103458,86782.0,86781.0,5.4e-07]
[1743012141608,0.5453238,86782.0,86781.0,5.4e-07]
[1743012141748,0.6779238,86782.0,86781.0,5.4e-07]
[1743012142186,0.5453238,86782.0,86781.0,5.4e-07]
[1743012142357,0.6779238,86782.0,86781.0,5.4e-07]
[1743012153324,0.5453238,86782.0,86781.0,5.4e-07]
[1743012153561,0.6779238,86782.0,86781.0,5.4e-07]
[1743012154420,0.5453238,86782.0,86781.0,5.4e-07]
[1743012154629,0.6779238,86782.0,86781.0,5.4e-07]
[1743012156253,0.6273238,86782.0,86781.0,5.4e-07]
[1743012156456,0.7599238,86782.0,86781.0,5.4e-07]
[1743012158698,0.78154978,86782.0,86781.0,5.4e-07]
[1743012159119,0.64894978,86782.0,86781.0,5.4e-07]
[1743012159351,0.78154978,86782.0,86781.0,5.4e-07]
[1743012159764,0.542021,86769.0,86768.0,0.0001693]
[1743012159979,4.945016,86769.0,86768.0,0.00021592]
[1743012160187,3.009169,86769.0,86768.0,0.00021592]
[1743012160397,1.761052,86769.0,86768.0,0.00021592]
[1743012160686,1.769756,86769.0,86768.0,0.00021592]
[1743012161237,1.79138198,86769.0,86768.0,0.00021592]
[1743012161632,1.92398198,86769.0,86768.0,0.00021592]
[1743012161912,1.92498198,86769.0,86768.0,0.00021592]
[1743012162328,1.92598198,86769.0,86768.0,0.00021592]
[1743012170763,0.57435098,86769.0,86768.0,0.00021592]
[1743012170920,0.70695098,86769.0,86768.0,0.00021592]
[1743012171124,4.96226698,86769.0,86768.0,0.00021592]
[1743012171746,4.62724198,86769.0,86768.0,0.00021592]
[1743012171946,4.66184159,86769.0,86768.0,0.00021592]
[1743012172119,4.30424159,86769.0,86768.0,0.00021592]
[1743012172322,4.43684159,86769.0,86768.0,0.00021592]
[1743012172839,0.542049,86759.0,86758.0,0.0001693]
[1743012173035,0.542049,86759.0,86758.0,0.00029804]
[1743012174095,0.59827459,86759.0,86758.0,0.00029804]
[1743012174296,0.59827459,86759.0,86758.0,0.00229804]
[1743012174543,2.29348459,86759.0,86758.0,0.00229804]
[1743012175310,2.29348459,86759.0,86758.0,0.00129804]
[1743012175514,1.99243259,86759.0,86758.0,0.00129804]
[1743012175892,1.98087859,86759.0,86758.0,0.00129804]
[1743012176511,1.94627898,86759.0,86758.0,0.00129804]
[1743012176706,1.94627898,86759.0,86758.0,0.00229804]
[1743012177126,1.94627898,86759.0,86758.0,0.00129804]
[1743012177536,1.78960698,86759.0,86758.0,0.00129804]
[1743012177737,1.78960698,86759.0,86758.0,0.00029804]
[1743012177992,1.77112098,86759.0,86758.0,0.00029804]
[1743012178704,1.66715098,86759.0,86758.0,0.00029804]
[1743012179929,1.43458798,86759.0,86758.0,0.00029804]
[1743012180127,1.42349698,86759.0,86758.0,0.00029804]
[1743012181604,0.56367498,86759.0,86758.0,0.00029804]
[1743012181834,3.71906798,86759.0,86758.0,0.00029804]
[1743012182067,3.31853298,86759.0,86758.0,0.00029804]
[1743012182260,3.44005098,86759.0,86758.0,0.00029804]
[1743012182933,3.418425,86759.0,86758.0,0.00029804]
[1743012183351,3.44004724,86759.0,86758.0,0.00029804]
[1743012183565,3.44104724,86759.0,86758.0,0.00029804]
[1743012183801,3.14104724,86759.0,86758.0,0.00029804]
[1743012184056,3.419425,86759.0,86758.0,0.00029804]
[1743012184337,3.44104893,86759.0,86758.0,0.00029804]
[1743012185372,2.01509793,86759.0,86758.0,0.00029804]
[1743012185665,0.56467293,86759.0,86758.0,0.00029804]
[1743012185954,0.60127089,86759.0,86758.0,0.00029804]
[1743012187228,0.56467293,86759.0,86758.0,0.00029804]
[1743012187475,0.56367293,86759.0,86758.0,0.00029804]
[1743012188951,0.56467293,86759.0,86758.0,0.00029804]
[1743012192756,1.78349293,86759.0,86758.0,0.00029804]
[1743012194606,1.81808983,86759.0,86758.0,0.00029804]
[1743012196163,1.78349293,86759.0,86758.0,0.00029804]
[1743012198765,1.59191193,86759.0,86758.0,0.00029804]
[1743012198972,0.87516693,86759.0,86758.0,0.00029804]
[1743012199179,0.86361393,86759.0,86758.0,0.00029804]
[1743012201355,0.69727293,86759.0,86758.0,0.00029804]
[1743012201775,1.31634993,86759.0,86758.0,0.00029804]
[1743012201987,1.35095215,86759.0,86758.0,0.00029804]
[1743012202831,0.73187515,86759.0,86758.0,0.00029804]
[1743012203263,0.542077,86749.0,86748.0,0.0499]
[1743012203500,0.542077,86749.0,86748.0,0.05002865]
[1743012203712,0.542077,86749.0,86748.0,0.00012865]
[1743012204616,0.542077,86749.0,86748.0,0.00212865]
[1743012204830,0.542077,86749.0,86748.0,0.00412865]
[1743012205237,0.59830315,86749.0,86748.0,0.00412865]
[1743012205659,0.36775315,86749.0,86748.0,0.00412865]
[1743012205868,0.59830315,86749.0,86748.0,0.00412865]
[1743012207156,0.59830315,86749.0,86748.0,0.3924485]
[1743012207157,0.05622615,86749.0,86748.0,0.3924485]
[1743012207437,0.05622615,86749.0,86748.0,0.44939027]
[1743012207752,0.05622615,86749.0,86748.0,0.3924485]
[1743012208093,0.05622615,86749.0,86748.0,0.3926179]
[1743012208293,0.05622615,86749.0,86748.0,0.3906179]
[1743012208516,0.05622615,86749.0,86748.0,0.3886179]
[1743012209141,0.02162393,86749.0,86748.0,0.3886179]
[1743012209328,0.02162393,86749.0,86748.0,0.37407705]
[1743012209507,0.02162393,86749.0,86748.0,0.3886179]
[1743012209905,0.02162393,86749.0,86748.0,0.3926179]
[1743012210704,0.02162393,86749.0,86748.0,0.3906179]
[1743012210968,0.02162393,86749.0,86748.0,0.3946179]
[1743012211458,0.02162393,86749.0,86748.0,0.1525389]
[1743012211674,0.02162393,86749.0,86748.0,0.14752505]
[1743012211883,0.02162393,86749.0,86748.0,0.37807705]
[1743012212010,0.02162393,86749.0,86748.0,0.38207705]
[1743012212810,0.02162393,86749.0,86748.0,0.3966179]
[1743012213856,0.02162393,86749.0,86748.0,0.51087554]
[1743012214277,0.02162393,86749.0,86748.0,0.50687554]
[1743012214704,0.02162393,86767.0,86766.0,0.24203]
[1743012214935,0.02162393,86767.0,86766.0,1.09238849]
[1743012216393,0.0003388,86768.0,86767.0,0.25656785]
[1743012216599,0.0003388,86768.0,86767.0,0.37082549]
[1743012217789,0.0003388,86768.0,86767.0,0.45472549]
[1743012218249,0.0003388,86768.0,86767.0,0.50062549]
[1743012218382,0.0003388,86768.0,86767.0,0.63518549]
[1743012219130,0.0003388,86768.0,86767.0,0.65770261]
[1743012219308,0.0003388,86768.0,86767.0,0.39735997]
[1743012219507,0.0003388,86768.0,86767.0,0.41488497]
[1743012219713,0.0003388,86768.0,86767.0,0.17185797]
[1743012219967,0.0003388,86768.0,86767.0,0.40788497]
[1743012220175,0.0003388,86768.0,86767.0,0.41388497]
[1743012220699,0.0003388,86768.0,86767.0,0.40788497]
[1743012221114,0.0003388,86768.0,86767.0,0.41188497]
[1743012221507,0.0003388,86768.0,86767.0,0.41688497]
[1743012221940,0.0003388,86768.0,86767.0,0.41188497]
[1743012222410,0.0003388,86768.0,86767.0,0.41588497]
[1743012222640,0.0003388,86768.0,86767.0,0.18538297]
[1743012222822,0.0003388,86768.0,86767.0,0.41588497]
[1743012224483,0.0003388,86768.0,86767.0,0.04505797]
[1743012224694,0.0003388,86768.0,86767.0,0.28708497]
[1743012225074,0.0003388,86768.0,86767.0,0.27555997]
[1743012225278,0.0003388,86768.0,86767.0,0.28708497]
[1743012226928,0.0003388,86768.0,86767.0,0.47724261]
[1743012233716,0.0003388,86768.0,86767.0,0.59150025]
[1743012233945,0.0003388,86768.0,86767.0,0.64060025]
[1743012234377,0.0003388,86768.0,86767.0,0.52634261]
[1743012235206,8e-07,86768.0,86767.0,0.53134261]
[1743012235629,8e-07,86768.0,86767.0,0.52734261]
[1743012236249,8e-07,86768.0,86767.0,0.55434261]
[1743012236458,0.0003388,86781.0,86780.0,0.24199]
[1743012236667,0.0003388,86781.0,86780.0,0.72580917]
[1743012237741,0.0003388,86781.0,86780.0,0.72593782]
[1743012238375,0.0003388,86781.0,86780.0,0.64897449]
[1743012238580,0.0003388,86781.0,86780.0,0.66049749]
[1743012238790,0.0003388,86781.0,86780.0,0.57366239]
[1743012239041,0.0003388,86781.0,86780.0,0.73770567]
[1743012239281,0.0003388,86781.0,86780.0,0.74170567]
[1743012239713,0.0003388,86781.0,86780.0,0.74670567]
[1743012242093,0.0003388,86781.0,86780.0,0.61418567]
[1743012242297,0.0003388,86781.0,86780.0,0.74682567]
[1743012242880,0.0003388,86781.0,86780.0,0.74182567]
[1743012243095,0.0003388,86781.0,86780.0,0.73782567]
[1743012243293,0.0003388,86781.0,86780.0,0.74382567]
[1743012243589,0.0003388,86781.0,86780.0,0.74982567]
[1743012244707,0.0003388,86781.0,86780.0,0.74999507]
[1743012245111,0.0003388,86781.0,86780.0,0.75499507]
[1743012246135,0.0003388,86781.0,86780.0,0.74899507]
[1743012246336,0.0003388,86781.0,86780.0,0.76799507]
[1743012246780,0.0003388,86781.0,86780.0,0.77999507]
[1743012248661,0.0003388,86781.0,86780.0,0.81578038]
[1743012249485,0.0003388,86781.0,86780.0,1.41422038]
[1743012250307,8e-07,86781.0,86780.0,1.71422038]
[1743012250506,6e-07,86782.0,86781.0,0.71392885]
[1743012250725,6e-07,86782.0,86781.0,0.97822944]
[1743012251850,6e-07,86782.0,86781.0,0.98422944]
[1743012253673,6e-07,86782.0,86781.0,0.99022944]
[1743012254309,8e-07,86803.0,86802.0,0.28646985]
[1743012254512,8e-07,86803.0,86802.0,0.75428308]
[1743012254716,8e-07,86803.0,86802.0,0.78997922]
[1743012254961,0.0002418,86804.0,86803.0,0.26146685]
[1743012254962,0.00014499,86804.0,86803.0,0.26146685]
[1743012255134,0.00014499,86804.0,86803.0,0.41142063]
[1743012256421,0.00014499,86804.0,86803.0,0.37572449]
[1743012256622,0.00014499,86804.0,86803.0,0.48998213]
[1743012256824,0.00014499,86804.0,86803.0,0.52566682]
[1743012257640,0.00014499,86804.0,86803.0,0.49598213]
[1743012258252,0.00014499,86804.0,86803.0,0.50198213]
[1743012259668,0.00014499,86804.0,86803.0,0.52698213]
[1743012260170,0.00014499,86804.0,86803.0,0.50198213]
[1743012260713,0.00014499,86804.0,86803.0,0.53766337]
[1743012261766,0.00014499,86804.0,86803.0,0.50198213]
[1743012261967,0.00014499,86804.0,86803.0,0.63442213]
[1743012262774,0.00014499,86804.0,86803.0,0.73712698]
[1743012263585,0.00014499,86804.0,86803.0,0.77281725]